bitfinex/quotes_BTCUSD_20240905
["timestamp","ask_amount","ask_price","bid_price","bid_amount"]
[1725516749602,0.10151186,57265.0,57264.0,0.2434]
[1725516749812,0.10151186,57265.0,57264.0,0.2534]
[1725516750502,0.0273956,57270.0,57269.0,0.012]
[1725516750715,0.2496236,57270.0,57269.0,0.2715]
[1725516750917,0.25121537,57270.0,57269.0,0.2715]
[1725516751123,0.12898737,57270.0,57269.0,0.2715]
[1725516751823,0.12898737,57270.0,57269.0,0.63819]
[1725516751824,0.02898737,57270.0,57269.0,0.63819]
[1725516752069,0.0273956,57270.0,57269.0,0.63819]
[1725516752281,0.02890552,57270.0,57269.0,0.63819]
[1725516752533,0.02890552,57270.0,57269.0,1.15011]
[1725516753017,0.0273956,57270.0,57269.0,1.15011]
[1725516754439,0.122203,57282.0,57281.0,0.2428]
[1725516754664,0.13150045,57282.0,57281.0,0.2428]
[1725516754874,0.00929745,57282.0,57281.0,0.2528]
[1725516755310,0.2222,57283.0,57281.0,0.2528]
[1725516755555,0.00929145,57282.0,57281.0,0.2528]
[1725516756069,0.13149345,57282.0,57281.0,0.2528]
[1725516756294,0.23149345,57282.0,57281.0,0.2528]
[1725516757445,0.23149345,57282.0,57281.0,0.2628]
[1725516757446,0.72030145,57282.0,57281.0,0.2628]
[1725516760630,0.74768891,57282.0,57281.0,0.2628]
[1725516760860,0.74850491,57282.0,57281.0,0.2628]
[1725516762708,0.366651,57275.0,57274.0,0.163]
[1725516762943,0.611085,57275.0,57274.0,0.163]
[1725516763180,0.86485614,57275.0,57274.0,0.163]
[1725516765032,0.96485614,57275.0,57274.0,0.163]
[1725516768060,0.47598814,57275.0,57274.0,0.163]
[1725516768304,0.47598814,57275.0,57274.0,0.2917]
[1725516768305,0.00933714,57275.0,57274.0,0.2917]
[1725516768788,0.344413,57280.0,57279.0,0.1489]
[1725516768996,0.466619,57280.0,57279.0,0.1489]
[1725516769237,0.49400742,57280.0,57279.0,0.1489]
[1725516770775,0.24959442,57280.0,57279.0,0.2513]
[1725516771285,0.24959442,57280.0,57279.0,0.2613]
[1725516771966,0.25457912,57280.0,57279.0,0.2613]
[1725516772411,0.25623839,57280.0,57279.0,0.2613]
[1725516773591,0.25705439,57280.0,57279.0,0.2613]
[1725516773827,0.20782657,57281.0,57280.0,0.011]
[1725516774046,0.33003057,57281.0,57280.0,0.012]
[1725516774523,0.122204,57281.0,57280.0,0.022]
[1725516774775,0.122204,57281.0,57279.0,0.2393]
[1725516774776,0.000816,57282.0,57281.0,0.022]
[1725516775236,0.367422,57282.0,57281.0,0.022]
[1725516775947,0.36867872,57282.0,57281.0,0.022]
[1725516776183,0.46867872,57282.0,57281.0,0.022]
[1725516777286,0.49606608,57282.0,57281.0,0.022]
[1725516777550,0.496542,57282.0,57281.0,0.022]
[1725516778486,0.029936,57282.0,57281.0,0.380304]
[1725516778748,0.029936,57282.0,57281.0,0.647713]
[1725516778971,0.02820336,57282.0,57281.0,0.647713]
[1725516779187,0.03448533,57282.0,57281.0,0.647713]
[1725516780370,0.245195,57288.0,57287.0,0.002]
[1725516780583,0.856142,57288.0,57287.0,0.012]
[1725516780799,0.856142,57288.0,57287.0,0.022]
[1725516781499,0.86167268,57288.0,57287.0,0.022]
[1725516782371,0.96167268,57288.0,57287.0,0.022]
[1725516783157,0.96299512,57288.0,57287.0,0.022]
[1725516784159,0.855414,57282.0,57281.0,0.002]
[1725516784382,1.1006615,57282.0,57281.0,0.002]
[1725516784613,1.1006615,57282.0,57279.0,0.01]
[1725516784614,0.122206,57280.0,57279.0,0.01]
[1725516784896,0.122206,57280.0,57276.0,0.02]
[1725516784897,0.366639,57277.0,57276.0,0.02]
[1725516785151,0.366639,57277.0,57273.0,0.1377]
[1725516785152,0.366645,57276.0,57275.0,0.02]
[1725516785383,0.855505,57276.0,57275.0,0.02]
[1725516785588,0.85678459,57276.0,57275.0,0.02]
[1725516786016,0.95489658,57276.0,57275.0,0.02]
[1725516786246,0.98228769,57276.0,57275.0,0.02]
[1725516786913,0.98782401,57276.0,57275.0,0.02]
[1725516787141,0.88971202,57276.0,57275.0,0.02]
[1725516789288,0.64528202,57276.0,57275.0,0.022]
[1725516789873,0.88971202,57276.0,57275.0,0.022]
[1725516790118,0.88971202,57276.0,57275.0,0.02]
[1725516792480,0.88971202,57276.0,57275.0,0.01]
[1725516793749,0.88971202,57276.0,57275.0,0.02]
[1725516794768,0.86232091,57276.0,57275.0,0.02]
[1725516795675,0.86232091,57276.0,57275.0,0.022]
[1725516796152,0.86232091,57276.0,57274.0,0.001632]
[1725516796153,1.099953,57275.0,57274.0,0.001632]
[1725516796402,1.47760085,57275.0,57274.0,0.001632]
[1725516796620,0.855596,57270.0,57269.0,0.001632]
[1725516796862,1.37769985,57270.0,57269.0,0.001632]
[1725516797075,1.23721787,57270.0,57269.0,0.001632]
[1725516797294,1.48246572,57270.0,57269.0,0.001632]
[1725516797757,1.47902017,57270.0,57269.0,0.001632]
[1725516800207,1.48025177,57270.0,57269.0,0.001632]
[1725516801458,1.72470777,57270.0,57269.0,0.001632]
[1725516801689,1.57975177,57270.0,57269.0,0.001632]
[1725516801906,1.58564701,57270.0,57269.0,0.001632]
[1725516802132,1.83010301,57270.0,57269.0,0.001632]
[1725516802567,1.58564701,57270.0,57269.0,0.001632]
[1725516803878,1.83010301,57270.0,57269.0,0.001632]
[1725516804099,1.58564701,57270.0,57269.0,0.001632]
[1725516804544,1.48614701,57270.0,57269.0,0.001632]
[1725516807132,1.5135467,57270.0,57269.0,0.001632]
[1725516808420,1.4811467,57270.0,57269.0,0.001632]
[1725516809502,1.49939199,57270.0,57269.0,0.001632]
[1725516818225,1.53179199,57270.0,57269.0,0.001632]
[1725516819852,1.77624799,57270.0,57269.0,0.001632]
[1725516820485,1.78624799,57270.0,57269.0,0.001632]
[1725516821649,1.88574799,57270.0,57269.0,0.001632]
[1725516822303,1.88656399,57270.0,57269.0,0.001632]
[1725516822515,2.06212425,57270.0,57269.0,0.001632]
[1725516823607,1.78706399,57270.0,57269.0,0.001632]
[1725516824934,1.51020799,57270.0,57269.0,0.001632]
[1725516825328,1.75466399,57270.0,57269.0,0.001632]
[1725516827962,1.52397166,57270.0,57269.0,0.001632]
[1725516828381,1.52397166,57270.0,57269.0,0.00159148]
[1725516835475,1.54897865,57270.0,57269.0,0.00159148]
[1725516838057,1.53204165,57270.0,57269.0,0.00159148]
[1725516838492,1.4018928,57270.0,57269.0,0.00159148]
[1725516841457,1.55845345,57270.0,57269.0,0.00159148]
[1725516842643,1.4018928,57270.0,57269.0,0.00159148]
[1725516842871,1.55845345,57270.0,57269.0,0.23999148]
[1725516843115,1.55845345,57270.0,57269.0,0.00159148]
[1725516843116,1.4018928,57270.0,57269.0,0.00159148]
[1725516843564,1.6463488,57270.0,57269.0,0.00159148]
[1725516843791,1.4018928,57270.0,57269.0,0.00159148]
[1725516845852,1.198268,57267.0,57266.0,0.09589283]
[1725516846057,1.298268,57267.0,57266.0,0.09589283]
[1725516846243,1.31007165,57267.0,57266.0,0.09589283]
[1725516849441,1.18783765,57267.0,57266.0,0.09589283]
[1725516849866,1.31007165,57267.0,57266.0,0.09589283]
[1725516850089,1.21190965,57267.0,57266.0,0.09589283]
[1725516850319,1.31007165,57267.0,57266.0,0.09589283]
[1725516850528,1.31407165,57267.0,57266.0,0.09589283]
[1725516850883,1.31007165,57267.0,57266.0,0.09589283]
[1725516851292,1.31107165,57267.0,57266.0,0.09589283]
[1725516856268,1.06660365,57267.0,57266.0,0.09589283]
[1725516856533,1.06660365,57267.0,57266.0,0.22149283]
[1725516857389,1.06660365,57267.0,57266.0,0.22349283]
[1725516858032,1.06660365,57267.0,57266.0,0.22512483]
[1725516859167,0.82213565,57267.0,57266.0,0.22312483]
[1725516859386,1.06660365,57267.0,57266.0,0.22312483]
[1725516861578,1.06960365,57267.0,57266.0,0.22312483]
[1725516862118,0.11580365,57267.0,57266.0,0.24312483]
[1725516862349,0.11580365,57267.0,57266.0,0.27818483]
[1725516862350,0.00803727,57267.0,57266.0,0.27818483]
[1725516862583,0.00703727,57267.0,57266.0,0.27818483]
[1725516862794,0.01024376,57267.0,57266.0,0.27818483]
[1725516863002,0.00114233,57267.0,57266.0,0.27818483]
[1725516863207,0.12223,57269.0,57267.0,0.2376]
[1725516863412,0.12223,57269.0,57266.0,0.056692]
[1725516863617,0.12223,57269.0,57268.0,0.2376]
[1725516863843,0.709312,57269.0,57268.0,0.2356]
[1725516864080,1.05853859,57269.0,57268.0,0.2356]
[1725516864306,1.05853859,57269.0,57268.0,0.2336]
[1725516865011,1.05853859,57269.0,57268.0,0.2446]
[1725516865012,1.05953859,57269.0,57268.0,0.2446]
[1725516865247,1.05953859,57269.0,57268.0,0.2336]
[1725516865718,1.05953859,57269.0,57268.0,0.2386]
[1725516866421,1.06172907,57269.0,57268.0,0.2396]
[1725516866939,1.06072907,57269.0,57268.0,0.2386]
[1725516867175,1.06172907,57269.0,57268.0,0.2396]
[1725516868099,0.96356707,57269.0,57268.0,0.2396]
[1725516868555,1.06172907,57269.0,57268.0,0.2396]
[1725516870464,1.06254507,57269.0,57268.0,0.2396]
[1725516874793,1.06254507,57269.0,57268.0,0.2496]
[1725516874794,0.71992307,57269.0,57268.0,0.2496]
[1725516875044,0.71992307,57269.0,57268.0,0.2616]
[1725516875978,0.71515648,57269.0,57268.0,0.2616]
[1725516877152,0.72426126,57269.0,57268.0,0.2616]
[1725516882928,0.72426126,57269.0,57268.0,0.263232]
[1725516884394,0.96872126,57269.0,57268.0,0.241232]
[1725516884602,0.97348794,57269.0,57268.0,0.241232]
[1725516887947,0.97348794,57269.0,57268.0,0.261232]
[1725516890784,0.96872126,57269.0,57268.0,0.261232]
[1725516892837,0.96872126,57269.0,57268.0,0.263232]
[1725516895926,0.96872126,57269.0,57268.0,0.283232]
[1725516895927,0.11311126,57269.0,57268.0,0.283232]
[1725516896139,0.11311126,57269.0,57268.0,0.381394]
[1725516896401,0.13534126,57269.0,57268.0,0.283232]
[1725516896655,0.11311126,57269.0,57268.0,0.283232]
[1725516896876,0.23534126,57269.0,57268.0,0.283232]
[1725516897329,0.11311126,57269.0,57268.0,0.283232]
[1725516898619,0.23534126,57269.0,57268.0,0.283232]
[1725516898840,0.72426126,57269.0,57268.0,0.283232]
[1725516900909,0.72426126,57269.0,57268.0,0.261232]
[1725516900910,0.96872126,57269.0,57268.0,0.261232]
[1725516901120,0.96872126,57269.0,57268.0,0.027632]
[1725516901563,1.2179483,57269.0,57268.0,0.027632]
[1725516904164,1.46330391,57269.0,57268.0,0.027632]
[1725516904395,1.46330391,57269.0,57268.0,0.270532]
[1725516904396,0.96872126,57269.0,57268.0,0.270532]
[1725516904836,0.97348836,57269.0,57268.0,0.270532]
[1725516906597,0.97348836,57269.0,57268.0,0.027632]
[1725516907036,1.21794836,57269.0,57268.0,0.027632]
[1725516907485,0.97348836,57269.0,57268.0,0.027632]
[1725516908007,1.21794836,57269.0,57268.0,0.027632]
[1725516909524,0.97348836,57269.0,57268.0,0.027632]
[1725516909963,1.21794836,57269.0,57268.0,0.027632]
[1725516912007,0.97348836,57269.0,57268.0,0.258732]
[1725516912441,0.97348836,57269.0,57268.0,0.268732]
[1725516912682,0.97348836,57269.0,57268.0,0.278732]
[1725516912683,0.62426126,57269.0,57268.0,0.278732]
[1725516913325,0.62426126,57269.0,57268.0,0.280732]
[1725516913532,0.86872126,57269.0,57268.0,0.280732]
[1725516913745,0.62426126,57269.0,57268.0,0.280732]
[1725516914417,0.72426126,57269.0,57268.0,0.280732]
[1725516919659,0.5992447,57269.0,57268.0,0.280732]
[1725516919903,0.7214747,57269.0,57268.0,0.280732]
[1725516925498,0.7214747,57269.0,57268.0,0.278732]
[1725516925742,0.7214747,57269.0,57268.0,0.027632]
[1725516925743,0.97070199,57269.0,57268.0,0.027632]
[1725516926170,1.21516199,57269.0,57268.0,0.027632]
[1725516927065,0.97070199,57269.0,57268.0,0.027632]
[1725516927304,1.06881211,57269.0,57268.0,0.027632]
[1725516928613,1.31327211,57269.0,57268.0,0.027632]
[1725516929043,1.06881211,57269.0,57268.0,0.027632]
[1725516930556,0.9659347,57269.0,57268.0,0.256832]
[1725516930767,1.06404482,57269.0,57268.0,0.256832]
[1725516931286,1.06486082,57269.0,57268.0,0.256832]
[1725516932398,0.9667507,57269.0,57268.0,0.256832]
[1725516932617,0.9667507,57269.0,57268.0,0.258832]
[1725516933920,0.9667507,57269.0,57268.0,0.278832]
[1725516935237,0.9667507,57269.0,57268.0,0.276832]
[1725516936339,0.9667507,57269.0,57268.0,0.278832]
[1725516936771,0.9667507,57269.0,57268.0,0.266832]
[1725516937199,0.9667507,57269.0,57268.0,0.256832]
[1725516943164,0.91381037,57269.0,57268.0,0.027632]
[1725516943575,1.15827037,57269.0,57268.0,0.027632]
[1725516944022,0.91381037,57269.0,57268.0,0.027632]
[1725516944257,1.15827037,57269.0,57268.0,0.027632]
[1725516948516,0.91381037,57269.0,57268.0,0.027632]
[1725516948751,0.90904286,57269.0,57268.0,0.027632]
[1725516956126,0.90904286,57269.0,57268.0,0.027632]
[1725516957793,0.90904286,57269.0,57268.0,0.137632]
[1725516960608,0.90904286,57269.0,57268.0,0.274032]
[1725516961480,0.90904286,57269.0,57268.0,0.276032]
[1725516961995,0.90904286,57269.0,57268.0,0.274032]
[1725516964569,1.15350286,57269.0,57268.0,0.027632]
[1725516965478,0.90904286,57269.0,57268.0,0.266132]
[1725516965924,1.00715298,57269.0,57268.0,0.266132]
[1725516968087,0.90904286,57269.0,57268.0,0.276132]
[1725516968276,0.90904286,57269.0,57268.0,0.278132]
[1725516973219,0.85398126,57269.0,57268.0,0.278132]
[1725516973440,0.86372234,57269.0,57268.0,0.278132]
[1725516975519,0.96372234,57269.0,57268.0,0.266132]
[1725516975841,0.96849,57269.0,57268.0,0.266132]
[1725516976937,0.96372234,57269.0,57268.0,0.266132]
[1725516977155,0.96372234,57269.0,57268.0,0.276132]
[1725516981733,0.96372234,57269.0,57268.0,0.266132]
[1725516981957,0.96849002,57269.0,57268.0,0.266132]
[1725516982585,0.96849002,57269.0,57268.0,0.286132]
[1725516982586,0.71926234,57269.0,57268.0,0.286132]
[1725516983014,0.71926234,57269.0,57268.0,0.288132]
[1725516984976,0.96372234,57269.0,57268.0,0.288132]
[1725516985427,0.71926234,57269.0,57268.0,0.288132]
[1725516992183,0.96372234,57269.0,57268.0,0.288132]
[1725516999885,0.96492474,57269.0,57268.0,0.288132]
[1725517000545,0.9648733,57269.0,57268.0,0.288132]
[1725517004202,0.7204133,57269.0,57268.0,0.288132]
[1725517012508,0.9648733,57269.0,57268.0,0.027632]
[1725517012726,0.96964126,57269.0,57268.0,0.047632]
[1725517012963,0.96964126,57269.0,57268.0,0.027632]
[1725517014441,1.34320126,57269.0,57268.0,0.027632]
[1725517014665,1.47370983,57269.0,57268.0,0.01687727]
[1725517014888,1.34320126,57269.0,57268.0,0.01687727]
[1725517015589,1.24800126,57269.0,57268.0,0.01687727]
[1725517016484,1.21410126,57269.0,57268.0,0.01687727]
[1725517016937,1.2093333,57269.0,57268.0,0.01687727]
[1725517017597,1.30744342,57269.0,57268.0,0.01687727]
[1725517022676,1.33484122,57269.0,57268.0,0.01687727]
[1725517022890,1.36874122,57269.0,57268.0,0.01687727]
[1725517023117,1.37350931,57269.0,57268.0,0.01687727]
[1725517024495,1.33960931,57269.0,57268.0,0.01687727]
[1725517024744,1.33484122,57269.0,57268.0,0.01687727]
[1725517024968,1.33484122,57269.0,57268.0,0.12427727]
[1725517025192,1.33484122,57269.0,57268.0,0.12590927]
[1725517026918,0.9922711,57269.0,57268.0,0.14590927]
[1725517027178,0.9922711,57269.0,57268.0,0.14790927]
[1725517027404,0.9922711,57269.0,57268.0,0.28150927]
[1725517028165,0.7478111,57269.0,57268.0,0.28150927]
[1725517032483,0.9922711,57269.0,57268.0,0.28150927]
[1725517033429,0.5033511,57269.0,57268.0,0.28150927]
[1725517035531,0.7478111,57269.0,57268.0,0.28150927]
[1725517035770,0.7478111,57269.0,57268.0,0.27950927]
[1725517035997,0.7478111,57269.0,57268.0,0.28150927]
[1725517037111,0.84592122,57269.0,57268.0,0.27950927]
[1725517037547,1.09038122,57269.0,57268.0,0.27950927]
[1725517037779,0.7478111,57269.0,57268.0,0.27950927]
[1725517038470,0.7478111,57269.0,57268.0,0.28150927]
[1725517038682,0.5033511,57269.0,57268.0,0.28150927]
[1725517040232,0.7478111,57269.0,57268.0,0.28150927]
[1725517040446,0.7478111,57269.0,57268.0,0.27950927]
[1725517040665,0.7478111,57269.0,57268.0,0.28150927]
[1725517047654,0.5033511,57269.0,57268.0,0.28150927]
[1725517051213,0.7478111,57269.0,57268.0,0.28150927]
[1725517056606,0.7478111,57269.0,57268.0,0.27950927]
[1725517057078,0.7478111,57269.0,57268.0,0.28150927]
[1725517063269,0.9922711,57269.0,57268.0,0.01850927]
[1725517064856,0.9648733,57269.0,57268.0,0.01850927]
[1725517068185,0.9648733,57269.0,57268.0,0.02050927]
[1725517068611,0.9648733,57269.0,57268.0,0.01850927]
[1725517070397,0.9648733,57269.0,57268.0,0.12050927]
[1725517071048,0.9648733,57269.0,57268.0,0.12250927]
[1725517071270,0.9648733,57269.0,57268.0,0.26790927]
[1725517072630,0.99226863,57269.0,57268.0,0.26790927]
[1725517073508,0.82785421,57269.0,57268.0,0.26790927]
[1725517074397,0.70562421,57269.0,57268.0,0.26790927]
[1725517075510,0.46116421,57269.0,57268.0,0.26790927]
[1725517078176,0.46116421,57269.0,57268.0,0.26590927]
[1725517078392,0.70562421,57269.0,57268.0,0.26790927]
[1725517078648,0.46116421,57269.0,57268.0,0.26790927]
[1725517079998,0.02739533,57269.0,57268.0,0.26790927]
[1725517080224,0.02739533,57269.0,57268.0,0.36601939]
[1725517080651,0.02739533,57269.0,57268.0,0.48825139]
[1725517080889,0.02739533,57269.0,57268.0,0.40107939]
[1725517081126,0.02739533,57269.0,57268.0,0.52331139]
[1725517081354,0.02739533,57269.0,57268.0,1.03523939]
[1725517082072,0.02739533,57269.0,57268.0,0.54631139]
[1725517082541,0.02839533,57269.0,57268.0,0.80177539]
[1725517083894,0.02939533,57269.0,57268.0,0.80977539]
[1725517084127,0.02939533,57269.0,57268.0,0.56531139]
[1725517085103,0.03021133,57269.0,57268.0,0.56531139]
[1725517086400,0.03021133,57269.0,57268.0,0.44307939]
[1725517086620,0.03021133,57269.0,57268.0,0.34496927]
[1725517089536,0.03021133,57269.0,57268.0,0.44307939]
[1725517091134,0.002816,57269.0,57268.0,0.44307939]
[1725517095142,0.61873464,57269.0,57268.0,0.05750927]
[1725517095353,0.96319464,57269.0,57268.0,0.05750927]
[1725517095825,0.98922787,57269.0,57268.0,0.05750927]
[1725517096288,0.98822787,57269.0,57268.0,0.04650927]
[1725517096730,0.98822787,57269.0,57268.0,0.05150927]
[1725517096969,0.98822787,57269.0,57268.0,0.04650927]
[1725517097402,1.24288787,57269.0,57268.0,0.03150927]
[1725517097624,1.24188787,57269.0,57268.0,0.02350927]
[1725517097844,1.24288787,57269.0,57268.0,0.02550927]
[1725517098054,1.24288787,57269.0,57268.0,0.03050927]
[1725517098294,1.24288787,57269.0,57268.0,0.02350927]
[1725517098510,1.24188787,57269.0,57268.0,0.02350927]
[1725517098742,1.24288787,57269.0,57268.0,0.02950927]
[1725517099188,1.22762357,57269.0,57268.0,0.02950927]
[1725517104965,0.72373493,57269.0,57268.0,0.13790927]
[1725517105189,0.72373493,57269.0,57268.0,0.14790927]
[1725517105423,0.72373493,57269.0,57268.0,0.14590927]
[1725517107212,0.72373493,57269.0,57268.0,0.14790927]
[1725517107909,0.96819493,57269.0,57268.0,0.14790927]
[1725517108650,0.96901093,57269.0,57268.0,0.14790927]
[1725517109311,0.96901093,57269.0,57268.0,0.14590927]
[1725517110167,0.97921093,57269.0,57268.0,0.02950927]
[1725517110384,0.96901093,57269.0,57268.0,0.02950927]
[1725517111900,0.96901093,57269.0,57268.0,0.12470927]
[1725517112113,0.96901093,57269.0,57268.0,0.25830927]
[1725517112558,0.96901093,57269.0,57268.0,0.26830927]
[1725517113712,0.96901093,57269.0,57268.0,0.03950927]
[1725517113945,0.96901093,57269.0,57268.0,0.02950927]
[1725517114391,0.96901093,57269.0,57268.0,0.03950927]
[1725517114814,0.96901093,57269.0,57268.0,0.04950927]
[1725517116761,0.96901093,57269.0,57268.0,0.05150927]
[1725517117412,0.96901093,57269.0,57268.0,0.15230927]
[1725517118936,0.72455093,57269.0,57268.0,0.27820927]
[1725517119171,0.2095977,57269.0,57268.0,0.27820927]
[1725517119385,0.468506,57269.0,57268.0,0.27820927]
[1725517119600,0.224046,57269.0,57268.0,0.27820927]
[1725517124209,0.712966,57269.0,57268.0,0.27820927]
[1725517128954,0.224046,57269.0,57268.0,0.27820927]
[1725517129416,0.468506,57269.0,57268.0,0.27820927]
[1725517131217,1.05553612,57269.0,57268.0,0.04950927]
[1725517131430,0.957426,57269.0,57268.0,0.04950927]
[1725517132116,0.957426,57269.0,57268.0,0.05150927]
[1725517132776,0.712966,57269.0,57268.0,0.05150927]
[1725517132990,0.712966,57269.0,57268.0,0.25680927]
[1725517134506,0.468506,57269.0,57268.0,0.25680927]
[1725517138318,0.224046,57269.0,57268.0,0.25680927]
[1725517139640,0.468506,57269.0,57268.0,0.25680927]
[1725517139867,0.224046,57269.0,57268.0,0.25680927]
[1725517140278,0.468506,57269.0,57268.0,0.25680927]
[1725517140501,0.224046,57269.0,57268.0,0.25680927]
[1725517140940,0.23201923,57269.0,57268.0,0.25680927]
[1725517141151,0.47647923,57269.0,57268.0,0.25680927]
[1725517143352,0.72093923,57269.0,57268.0,0.25680927]
[1725517143634,0.72093923,57269.0,57268.0,0.04950927]
[1725517145218,0.72093923,57269.0,57268.0,0.05150927]
[1725517146933,0.712966,57269.0,57268.0,0.05150927]
[1725517147644,0.712966,57269.0,57268.0,0.04950927]
[1725517147645,0.957426,57269.0,57268.0,0.04950927]
[1725517151365,0.957426,57269.0,57268.0,0.14810927]
[1725517152475,0.957426,57269.0,57268.0,0.15010927]
[1725517154707,0.73338,57269.0,57268.0,0.15010927]
[1725517154985,0.85561,57269.0,57268.0,0.15010927]
[1725517156009,0.61115,57269.0,57268.0,0.15010927]
[1725517156463,0.611966,57269.0,57268.0,0.15010927]
[1725517156905,0.467506,57269.0,57268.0,0.15010927]
[1725517157135,0.223046,57269.0,57268.0,0.26330927]
[1725517157348,0.467506,57269.0,57268.0,0.26130927]
[1725517158872,0.100816,57269.0,57268.0,0.26130927]
[1725517159532,0.223046,57269.0,57268.0,0.26130927]
[1725517163300,0.467506,57269.0,57268.0,0.26130927]
[1725517169079,0.711966,57269.0,57268.0,0.26330927]
[1725517169298,0.711966,57269.0,57268.0,0.26130927]
[1725517169964,0.711966,57269.0,57268.0,0.04950927]
[1725517170191,0.711966,57269.0,57268.0,0.05150927]
[1725517180811,0.956426,57269.0,57268.0,0.05150927]
[1725517181046,0.956426,57269.0,57268.0,0.04950927]
[1725517181695,0.956426,57269.0,57268.0,0.05150927]
[1725517182359,0.956426,57269.0,57268.0,0.04950927]
[1725517184820,0.956426,57269.0,57268.0,0.05150927]
[1725517185048,0.711966,57269.0,57268.0,0.25580927]
[1725517186015,0.467506,57269.0,57268.0,0.25580927]
[1725517186956,0.223046,57269.0,57268.0,0.25580927]
[1725517187413,0.467506,57269.0,57268.0,0.25580927]
[1725517194928,0.223046,57269.0,57268.0,0.25580927]
[1725517196882,0.223046,57269.0,57268.0,0.86696927]
[1725517196883,0.000816,57269.0,57268.0,0.86696927]
[1725517197095,0.000816,57269.0,57268.0,0.68056527]
[1725517198037,0.000816,57269.0,57268.0,0.66956527]
[1725517198252,0.001816,57269.0,57268.0,0.67756527]
[1725517198467,0.002816,57269.0,57268.0,0.30186927]
[1725517198686,0.002816,57269.0,57268.0,0.42410127]
[1725517198891,0.002816,57269.0,57268.0,0.30186927]
[1725517202450,0.125046,57269.0,57268.0,0.30186927]
[1725517205766,0.002816,57269.0,57268.0,0.30186927]
[1725517208808,0.002816,57269.0,57268.0,0.42759323]
[1725517209267,0.002816,57269.0,57268.0,0.52570335]
[1725517209492,0.002816,57269.0,57268.0,1.03763135]
[1725517209718,0.002816,57269.0,57268.0,0.30186927]
[1725517209933,0.002816,57269.0,57268.0,0.30536114]
[1725517210155,0.002816,57269.0,57268.0,0.30186927]
[1725517211020,0.125046,57269.0,57268.0,0.30186927]
[1725517211458,0.369506,57269.0,57268.0,0.30186927]
[1725517213379,0.613966,57269.0,57268.0,0.30186927]
[1725517213594,1.05653612,57269.0,57268.0,0.06050927]
[1725517213801,0.958426,57269.0,57268.0,0.06050927]
[1725517214426,0.957426,57269.0,57268.0,0.05450927]
[1725517214884,0.957426,57269.0,57268.0,0.04650927]
[1725517215102,0.957426,57269.0,57268.0,0.05150927]
[1725517215318,0.346276,57269.0,57268.0,0.26760927]
[1725517215538,0.468506,57269.0,57268.0,0.26760927]
[1725517217279,0.12223,57269.0,57268.0,0.26760927]
[1725517217487,0.36669,57269.0,57268.0,0.26760927]
[1725517218181,0.61115,57269.0,57268.0,0.26760927]
[1725517218616,0.36669,57269.0,57268.0,0.26760927]
[1725517218856,0.36669,57269.0,57268.0,0.04950927]
[1725517218857,0.70926012,57269.0,57268.0,0.04950927]
[1725517219076,1.49040961,57269.0,57268.0,0.02950927]
[1725517219285,1.64166053,57269.0,57268.0,0.02950927]
[1725517219539,1.19821612,57267.0,57266.0,0.001632]
[1725517219775,1.44268412,57267.0,57266.0,0.001632]
[1725517220003,1.44745361,57267.0,57266.0,0.001632]
[1725517220221,1.61785583,57267.0,57266.0,0.001632]
[1725517220490,1.66910675,57267.0,57266.0,0.001632]
[1725517221164,1.19831512,57262.0,57261.0,0.001632]
[1725517221377,1.24131512,57262.0,57261.0,0.001632]
[1725517221583,1.34131512,57262.0,57261.0,0.001632]
[1725517221793,1.58580512,57262.0,57261.0,0.001632]
[1725517222476,1.34131512,57262.0,57261.0,0.001632]
[1725517222678,1.34531512,57262.0,57261.0,0.001632]
[1725517223757,1.30231512,57262.0,57261.0,0.001632]
[1725517224202,1.30931512,57262.0,57261.0,0.002632]
[1725517229231,1.3140847,57262.0,57261.0,0.002632]
[1725517230258,1.36533562,57262.0,57261.0,0.002632]
[1725517230476,1.3140847,57262.0,57261.0,0.002632]
[1725517232076,1.32312052,57262.0,57261.0,0.002632]
[1725517232718,1.66186144,57262.0,57261.0,0.002632]
[1725517232921,1.61061052,57262.0,57261.0,0.002632]
[1725517235189,1.32312052,57262.0,57261.0,0.002632]
[1725517235391,1.56761052,57262.0,57261.0,0.002632]
[1725517235642,1.32312052,57262.0,57261.0,0.002632]
[1725517236845,1.56761052,57262.0,57261.0,0.002632]
[1725517237269,1.32312052,57262.0,57261.0,0.002632]
[1725517254571,1.32312052,57262.0,57261.0,0.094732]
[1725517259659,1.32312052,57262.0,57261.0,0.002632]
[1725517261258,1.32312052,57262.0,57261.0,0.218832]
[1725517261259,0.63126082,57262.0,57261.0,0.218832]
[1725517261463,0.63126082,57262.0,57261.0,0.228832]
[1725517261674,0.87575082,57262.0,57261.0,0.228832]
[1725517261882,0.97386094,57262.0,57261.0,0.228832]
[1725517262771,1.07386094,57262.0,57261.0,0.228832]
[1725517263200,1.07863056,57262.0,57261.0,0.228832]
[1725517264288,0.98052044,57262.0,57261.0,0.226832]
[1725517264500,1.07863056,57262.0,57261.0,0.226832]
[1725517269717,1.07863056,57262.0,57261.0,0.228832]
[1725517270166,1.07863056,57262.0,57261.0,0.216832]
[1725517270597,1.07863056,57262.0,57261.0,0.206832]
[1725517271702,1.07863056,57262.0,57261.0,0.002632]
[1725517272155,1.32312056,57262.0,57261.0,0.002632]
[1725517276770,1.37437148,57262.0,57261.0,0.002632]
[1725517278465,1.32312056,57262.0,57261.0,0.002632]
[1725517280683,1.34481,57257.0,57256.0,0.0108691]
[1725517280902,1.44481,57257.0,57256.0,0.0108691]
[1725517281115,1.45479369,57257.0,57256.0,0.0108691]
[1725517281568,1.48219958,57257.0,57256.0,0.0108691]
[1725517282034,1.49619958,57257.0,57256.0,0.0118691]
[1725517282268,1.7919615,57257.0,57256.0,0.0118691]
[1725517282513,1.19850412,57252.0,57251.0,0.13]
[1725517282768,1.57343498,57252.0,57251.0,0.13]
[1725517282985,1.58338397,57252.0,57251.0,0.13]
[1725517283220,1.68338397,57252.0,57251.0,0.13]
[1725517283907,1.69538397,57252.0,57251.0,0.131]
[1725517284399,1.56498511,57252.0,57251.0,0.131]
[1725517284825,1.57398511,57252.0,57251.0,0.131]
[1725517285264,1.56498511,57252.0,57251.0,0.131]
[1725517285719,1.57398511,57252.0,57251.0,0.131]
[1725517287066,1.57398511,57252.0,57251.0,0.0225366]
[1725517287269,1.57398511,57252.0,57241.0,0.1169]
[1725517287271,0.376831,57247.0,57241.0,0.1169]
[1725517287483,0.71949512,57247.0,57241.0,0.1169]